Cogmind - Beta 16 @@@ ROGUE MODE // 2025.12.29 @ 00:35:11 Player: Bity Result: Destroyed by Y-45 Defender with Heavy Assault Rifle Performance ------------- Evolutions (0) 0 Regions Visited (3) 600 Robots Destroyed (30) 150 Value Destroyed (761) 761 Prototype IDs (12) 240 Alien Tech Used (0) 0 Bonus (0) 0 TOTAL SCORE: 1751 Bonus ------- None Cogmind --------- Core Integrity 0/250 Matter 290/300 Energy 125/125 System Corruption 1% Temperature Cool (27) Movement Rolling (105) Location -8/Recycling Parts ------- > --- POWER (1) -------- Light Ion Engine > --- PROPULSION (2) --- Compact Wheel Subdweller Monowheel > --- UTILITY (2) ------ Small Storage Unit Subdweller Optics > --- WEAPON (2) ------- Pulse Rifle Heavy Battle Rifle > --- INVENTORY (8) ---- Subdweller Power Source Arachnoskeleton Subdweller Optics Particle Gun Subdweller Laser Assault Rifle Peak State ------------ > --- POWER ------------ Subdweller Power Source > --- PROPULSION ------- Wheel Subdweller Monowheel > --- UTILITY ---------- Light Humpback > --- WEAPON ----------- Riot Gun Riot Gun > --- INVENTORY -------- Ion Engine Subdweller Power Source Spiked Treads Aluminum Leg Arachnoskeleton Subdweller Monowheel Subdweller Monowheel Subdweller Monowheel Disposable Heat Sink Small Storage Unit Subdweller Optics Subdweller Optics Subdweller Optics Signal Interpreter Light Armor Plating Particle Gun Subdweller Laser Subdweller Laser Subdweller Laser Subdweller Beam Cannon Assault Rifle Heavy Battle Rifle Scrap Shield Fragment [Rating: 19] Favorites ----------- Power Ion Engine Engine Ion Engine Propulsion Aluminum Leg Treads Spiked Treads Leg Aluminum Leg Wheel Subdweller Monowheel Flight Unit Flight Unit Utility Small Storage Unit Device Subdweller Optics Storage Small Storage Unit Processor Visual Processing Unit Protection Light Armor Plating Weapon Assault Rifle Energy Gun Subdweller Laser Ballistic Gun Assault Rifle Special Weapon Mining Laser Build | -11 -10 -10 -8 ------- Run | Yrd Mat Sub Rec Slots Evolved . | . . . . Power . | . . . . Propulsion . | . . . . Utility . | . . . . Weapon . | . . . . Parts Attached 33 | . 9 20 4 Power 5 | . 1 2 2 Engine 5 | . 1 2 2 Core . | . . . . Reactor . | . . . . Propulsion 9 | . 1 7 1 Treads 1 | . . 1 . Leg 2 | . 1 1 . Wheel 5 | . . 4 1 Hover . | . . . . Flight 1 | . . 1 . Utility 7 | . 4 3 . Device 1 | . . 1 . Storage 3 | . 2 1 . Processor 2 | . 1 1 . Hackware . | . . . . Protection 1 | . 1 . . Artifact . | . . . . Weapon 12 | . 3 8 1 Energy Gun 7 | . 1 5 1 Energy Cannon . | . . . . Ballistic Gun 4 | . 1 3 . Ballistic Cannon . | . . . . Launcher . | . . . . Special Weapon 1 | . 1 . . Impact Weapon . | . . . . Slashing Weapon . | . . . . Piercing Weapon . | . . . . Special Melee Weapon . | . . . . Unidentified Prototypes . | . . . . Parts Lost 11 | . . 11 . Power 1 | . . 1 . Propulsion 3 | . . 3 . Utility 1 | . . 1 . Weapon 6 | . . 6 . Highest Loss Streak 4 | . . 4 . To Critical Strikes 1 | . . 1 . Average Backups 9 | 6 7 10 6 Power . | 1 1 . 1 Propulsion 3 | 4 2 3 1 Utility 2 | . 1 3 1 Weapon 2 | 1 2 2 3 Tool/Special . | . . . . Unused Backups 17 | . 7 5 5 Power 3 | . 2 . 1 Propulsion 5 | . 3 1 1 Utility 3 | . . 2 1 Weapon 6 | . 2 2 2 Tool/Special . | . . . . Average Slot Usage (%) 90 | . 97 87 100 Engine 13 | . 14 13 14 Treads 1 | . . . 8 Leg 12 | . 28 9 . Wheel 13 | . . 16 19 Device 1 | . . . 14 Storage 13 | . 14 13 14 Processor 4 | . 8 4 . Energy Gun 9 | . 14 7 14 Ballistic Gun 14 | . 8 16 14 Special Weapon 2 | . 5 2 . Peak Build Rating 19 | 6 8 19 17 Average Rating 11 | 6 7 12 16 On Entrance 9 | 6 6 8 17 Avg Prop Armor Cover (%) 5 | . . 5 5 Naked Turns . | . . . . Heaviest Build 52 | 11 15 52 20 Greatest Support 40 | 20 20 40 36 Greatest Overweight (x) 5 | . . 5 . Average Overweight (x) . | . . 1 . Largest Inventory Capacity 25 | 8 20 25 8 Average Capacity 15 | 8 8 18 8 Most Carried 25 | 8 9 25 8 Average Carried 10 | 6 7 12 8 Final Capacity 8 | 8 8 8 8 Final Carried 8 | 8 8 8 8 Class Distribution -------------------- 95% | Mutant 4% | Scavenger-Mutant Dominant Class ---------------- Mutant | -10/Materials Mutant | -10/Subcaves Scavenger-Mutant | -8/Recycling Resources | -11 -10 -10 -8 ----------- Run | Yrd Mat Sub Rec Matter Collected 858 | 204 86 481 87 Remotely . | . . . . Salvage Created 1250 | 89 172 707 282 Parts 66 | 5 7 47 7 Haulers Intercepted 1 | . 1 . . Recyclers Shooed . | . . . . Parts Field Recycled . | . . . . Retrieved Matter . | . . . . Parts Self-Destructed 23 | . . 23 . Prevented . | . . . . Parts Restored . | . . . . Kills | -11 -10 -10 -8 ------- Run | Yrd Mat Sub Rec Combat Hostiles Destroyed 21 | . 2 19 . Guns 19 | . 2 17 . AOE 1 | . . 1 . Classes Destroyed 8 | 2 3 3 . Tunneler 1 | 1 . . . Hauler 1 | . 1 . . Recycler 3 | 1 . . 2 Turret 2 | . . 2 . Watcher 2 | . 2 . . Swarmer 7 | . . 7 . Grunt 4 | . 2 2 . Subdweller 10 | . . 10 . Best Kill Streak 6 | 2 4 6 2 Combat Bots Only 4 | . 2 4 . Max Kills in Single Turn 2 | 1 1 2 1 Gunslinging . | . . . . Exploded 1 | . . 1 . Melee . | . . . . Uniques/NPCs Destroyed . | . . . . Combat | -11 -10 -10 -8 -------- Run | Yrd Mat Sub Rec Hostile Shots Fired 148 | . 10 129 9 Missed 48 | . 3 42 3 Hits 100 | . 7 87 6 Projectile 100 | . 7 87 6 Critical Strikes 3 | . . 2 1 Damage Taken 1547 | . 88 1369 90 Core 257 | . 12 229 16 Absorbed by Shields . | . . . . Core Remaining (%) 100 | 100 . . . Volleys Fired 98 | 4 12 73 9 Largest 2 | 2 2 2 2 Hottest 110 | 70 100 110 93 Shots Fired 165 | 8 22 117 18 Gun 160 | 8 21 113 18 Cannon . | . . . . Launcher . | . . . . Special 5 | . 1 4 . Kinetic 97 | 4 10 74 9 Thermal 36 | 4 11 12 9 Explosive . | . . . . Electromagnetic 32 | . 1 31 . Robot Hit Streak 32 | 4 15 32 11 Robot Miss Streak 2 | 1 1 2 . Penetration Max . | . . . . Secondary Targets 1 | . . 1 . Max Gunslinging Chain 1 | . . 1 . Shots Hit Robots 121 | 6 17 91 7 Core Hits 55 | 3 10 38 4 Critical Kills 2 | . . 2 . Critical Parts Destroyed . | . . . . Critical Strikes 4 | . 2 2 . Burn 2 | . 2 . . Destroy 2 | . . 2 . Melee Attacks . | . . . . Impact . | . . . . Slashing . | . . . . Piercing . | . . . . Sneak Attacks . | . . . . Combat Hostiles . | . . . . Follow-up Attacks . | . . . . Damage Inflicted 1868 | 65 238 1418 147 Guns 1783 | 65 190 1381 147 Cannons . | . . . . Explosions 85 | . 48 37 . Melee . | . . . . Ramming . | . . . . Kinetic 946 | 16 56 831 43 Thermal 493 | 49 160 180 104 Explosive . | . . . . Electromagnetic 429 | . 22 407 . Impact . | . . . . Slashing . | . . . . Piercing . | . . . . Highest Corruption 1 | . 1 1 1 Average Corruption 1 | . 1 1 1 Corruption Purged . | . . . . Corruption Blocked . | . . . . Effects 15 | . . 11 4 Message Errors 3 | . . 1 2 Matter Fused 2 | . . 2 . Heat Flow Errors 5 | . . 4 1 Energy Discharges 3 | . . 3 . Data Loss (minor) 2 | . . 1 1 Overload Shots . | . . . . Overflow Damage 5 | . . 5 . Projectiles . | . . . . Explosions 5 | . . 5 . Melee . | . . . . Knockbacks . | . . . . Impact . | . . . . Kinetic . | . . . . Secondary . | . . . . Self-Inflicted Damage 30 | . . 30 . Shots 1 | . . 1 . Rammed . | . . . . Targets Rammed . | . . . . Kicked . | . . . . Crushed . | . . . . Highest Temperature 275 | 60 154 275 158 Average Temperature 72 | 30 51 131 64 Received Heat Transfer 693 | . 48 609 36 Siege Activations . | . . . . Martial Activations . | . . . . Shielding Activations . | . . . . Robots Disrupted . | . . . . Combat Hostiles . | . . . . Robots Corrupted 1 | . . 1 . Combat Hostiles 1 | . . 1 . Parts Fried 2 | . . 2 . Impact Corruptions . | . . . . Robots Melted . | . . . . Combat Hostiles . | . . . . Parts Melted 3 | . 3 . . Heat Transferred 1029 | 148 531 225 125 Parts Sabotaged . | . . . . Parts Stolen . | . . . . Parts Stripped . | . . . . Power Chain Reactions 2 | . 1 1 . Alert | -11 -10 -10 -8 ------- Run | Yrd Mat Sub Rec Maximum Alert Level . | . . . . Low Security (%) 100 | 100 100 . 100 Level 1 . | . . . . Level 2 . | . . . . Level 3 . | . . . . Level 4 . | . . . . Level 5 . | . . . . High Security . | . . . . Max Security . | . . . . Peak Influence 66 | 10 51 . 66 Initial 61 | . . . 61 Average 10 | 1 6 . 24 Influence Increases 429 | 10 107 285 27 Destroy 0b10 Robot/C 260 | . 40 220 . Destroy 0b10 Robot/NC 45 | 10 15 . 20 Destroy Leader 36 | . 16 20 . Successful Hack 9 | . 4 . 5 Disable Machine 15 | . 15 . . Destroy Structure 4 | . 2 . 2 Lose Combat Pursuer 60 | . 15 45 . Influence Decreases 429 | 10 107 157 155 Entered New Map 67 | . . . 67 Time Decay 322 | 10 107 117 88 Lost Part 40 | . . 40 . Squads Dispatched 3 | . 3 . . Investigation 2 | . 2 . . Extermination . | . . . . Reinforcement 1 | . 1 . . Assault . | . . . . Garrison . | . . . . Intercept . | . . . . Searches Triggered . | . . . . Construction Impeded . | . . . . Haulers Reinforced . | . . . . Active Scanning Responses . | . . . . Cargo Convoy Interrupts . | . . . . Stealth | -11 -10 -10 -8 --------- Run | Yrd Mat Sub Rec Distress Signals . | . . . . Communications Jammed . | . . . . Distress Signals . | . . . . Times Spotted 34 | . 6 26 2 Peak Tracking Total 4 | . 3 4 2 Tactical Retreats 4 | . 1 3 . Traps | -11 -10 -10 -8 ------- Run | Yrd Mat Sub Rec Traps Triggered 3 | . . 3 . Indirectly . | . . . . Trap Hack Attempts . | . . . . Triggered . | . . . . Disarmed . | . . . . Reprogrammed . | . . . . Reused 1 | . . 1 . Traps Extracted . | . . . . Installed 1 | . . 1 . Triggered . | . . . . Most Traps Carried 1 | . . 1 . Machines | -11 -10 -10 -8 ---------- Run | Yrd Mat Sub Rec Machines Disabled 5 | . 3 2 . Max in Single Turn 2 | . 2 1 . Machines Repaired . | . . . . Machines Dismantled . | . . . . Machines Sabotaged . | . . . . Overloaded Fab Kills . | . . . . Hacking | -11 -10 -10 -8 --------- Run | Yrd Mat Sub Rec Machines Accessed 9 | . 6 1 2 Terminals 5 | . 4 . 1 Fabricators . | . . . . Repair Stations . | . . . . Recycling Units 3 | . 2 . 1 Scanalyzers . | . . . . Garrison Access . | . . . . Total Hacks 33 | . 15 9 9 Successful 18 | . 6 9 3 Failed 15 | . 9 . 6 Catastrophic . | . . . . Database Lockouts . | . . . . Manual 21 | . 13 . 8 Terminals 20 | . 13 . 7 Fabricators . | . . . . Repair Stations . | . . . . Recycling Units 4 | . 2 . 2 Scanalyzers . | . . . . Garrison Access . | . . . . Terminal Hacks 10 | . 1 9 . Record 8 | . . 8 . Terminal Index 1 | . 1 . . Proto ID Catalog 1 | . . 1 . Fabricator Hacks . | . . . . Repair Station Hacks . | . . . . Recycling Unit Hacks 4 | . 2 . 2 Report Inventory 3 | . 2 . 1 Retrieve Components 1 | . . . 1 Scanalyzer . | . . . . Garrison Access Hacks . | . . . . Unauthorized Hacks 4 | . 3 . 1 Terminals 4 | . 3 . 1 Botnet 4 | . 3 . 1 Fabricators . | . . . . Repair Stations . | . . . . Recycling Units . | . . . . Scanalyzers . | . . . . Garrison Access . | . . . . Data Cores Recovered . | . . . . Used . | . . . . Hacking Detections 6 | . 4 . 2 Full Trace Events 4 | . 3 . 1 Feedback Events 1 | . 1 . . Corruption 1 | . 1 . . Feedback Blocked . | . . . . Robot Schematics Acquired . | . . . . Robots Built . | . . . . Authchips . | . . . . Time . | . . . . Total Robot Build Rating . | . . . . Part Schematics Acquired . | . . . . Parts Built . | . . . . Authchips . | . . . . Time . | . . . . Total Part Build Rating . | . . . . Part Studies Acquired . | . . . . Parts Repaired . | . . . . Time . | . . . . Parts Recycled . | . . . . Recycled Matter . | . . . . Retrieved Matter . | . . . . Retrieved Components 2 | . . . 2 Parts Scanalyzed . | . . . . Part Schematics Acquired . | . . . . Parts Damaged . | . . . . Bothacking | -11 -10 -10 -8 ------------ Run | Yrd Mat Sub Rec Used RIF Installer . | . . . . Robots Hacked . | . . . . Non-combat . | . . . . Combat . | . . . . Robot Hacks Applied . | . . . . Relay Couplers Released . | . . . . Fabnet Peak Effective % . | . . . . Robots Rewired . | . . . . Allies Hacked . | . . . . Hacks Repelled . | . . . . Allies | -11 -10 -10 -8 -------- Run | Yrd Mat Sub Rec Total Allies . | . . . . Largest Group . | . . . . Highest-Rated Group . | . . . . Highest-Rated Ally . | . . . . Total Orders . | . . . . Ally Attacks . | . . . . Total Damage . | . . . . Kills . | . . . . Allies Corrupted . | . . . . Allies Melted . | . . . . Intel | -11 -10 -10 -8 ------- Run | Yrd Mat Sub Rec Active Infowar (turns) 1064 | . 394 431 239 Optics 1064 | . 394 431 239 Robot Analysis Total . | . . . . Derelict Logs Recovered 1 | . . 1 . Drone Launches . | . . . . Drone Recoveries . | . . . . Exploration | -11 -10 -10 -8 ------------- Run | Yrd Mat Sub Rec Turns Passed 3105 | 50 657 2159 239 Spaces Moved 1817 | 29 456 1187 145 Core . | . . . . Treads 127 | . . 61 66 Legs 714 | 29 456 229 . Wheels 975 | . . 896 79 Hover . | . . . . Flight 1 | . . 1 . Fastest Speed 105 | 120 120 107 105 Average Speed 121 | 120 120 121 130 Slowest Speed 365 | 120 120 365 160 Overloaded Moves . | . . . . Propulsion Burnouts . | . . . . Robots Hopped . | . . . . Potential Cave-ins . | . . . . Cave-ins Triggered . | . . . . Exploration Rate (%) 37 | 3 59 66 21 Regions Visited 3 Branch Regions 2 Pre-discovered Areas . | . . . . Known Exits Taken 1 | . . 1 . Unknown Exits Taken 2 | 1 1 . . Scrap Searched . | . . . . Spaces Dug . | . . . . Terrain Destroyed 8 | . 2 5 1 Melee . | . . . . Projectile 1 | . . . 1 AOE 7 | . 2 5 . Terrain Rammed . | . . . . Walls Destroyed . | . . . . Machines Disabled . | . . . . Actions | -11 -10 -10 -8 --------- Run | Yrd Mat Sub Rec Total 2543 | 37 551 1778 177 Wait 507 | 3 52 437 15 Move 1814 | 28 455 1186 145 Hop . | . . . . Pick Up 49 | 2 10 37 . Fast Attach 8 | . 1 7 . Attach 9 | . 2 7 . Detach 1 | . . 1 . Swap 26 | . 6 15 5 Drop 30 | . 13 14 3 Fire 98 | 4 12 73 9 Melee . | . . . . Ram . | . . . . Kick . | . . . . Crush . | . . . . Escape Stasis . | . . . . Rewire . | . . . . Trap 1 | . . 1 . Miscellaneous . | . . . . Route ------- -11/Scrapyard -10/Materials (discovered 5 exits: [*Mat x2] / [*Min x2] / *Sub) -10/Subcaves (discovered 3 exits: [*Mat x2] / *Rec) -8/Recycling History --------- Turn | Location | Event 1 | -11/Scrapyard | Discovered new exit (range 3) 51 | -11/Scrapyard | Entered Materials 223 | -10/Materials | Discovered new exit (range 11) 266 | -10/Materials | Discovered new exit (range 9) 299 | -10/Materials | Discovered new exit (range 6) 310 | -10/Materials | Build established: Mutant 580 | -10/Materials | Discovered new exit (range 7) 615 | -10/Materials | Discovered new exit (range 9) 708 | -10/Materials | Entered Subcaves 885 | -10/Subcaves | Discovered new exit (range 5) 930 | -10/Subcaves | Visited 4L-MR0's lab 1033 | -10/Subcaves | Shifting Twisted Machinery released Lgt. Humpback 1150 | -10/Subcaves | Found Arachnoskeleton 1306 | -10/Subcaves | Core integrity fell below 50% 2191 | -10/Subcaves | Discovered new exit (range 8) 2300 | -10/Subcaves | A swath of the cavern ceiling suddenly collapsed 2401 | -10/Subcaves | Lost 4 parts (1n1u2w) 2589 | -10/Subcaves | Core integrity fell below 20% 2639 | -10/Subcaves | Discovered new exit (range 15) 2658 | -10/Subcaves | Identified exit to Recycling 2867 | -10/Subcaves | Entered Recycling 3106 | -8/Recycling | Destroyed by Y-45 Defender with Heavy Assault Rifle Last Messages --------------- 03024_ Acquired 13 matter. 03034_ Y-45 Defender springs to life. 03044_ System corrupted: Component data lost. 03045_ R-06 Scavenger collects Tractor Beam. 03071_ &>NW1K1HJF0UBGYZAL:39SR Y9BI 03077_ Connecting with Recycling Unit... >>Recycling(Report) Matter reserves: 0 Inventory: Pulse Rifle (55%) Particle Charger (32%) >>Retrieve(Components) Retrieving 2 components... Particle Charger Pulse Rifle 03078_ Dropped Sub. Laser. 03101_ R-06 Scavenger collects Sub. Laser. 03102_ R-06 Scavenger inserts Tractor Beam into recycling unit. 03106_ Critical hit (Burn: +37). Map ----- +----------------------------------------------------+ | ?????????????????????????????????????????????????? | | ?????????????????????????????????????????????????? | | ?????????????????????????????????????????????????? | | ?????????????????????????????????????????????????? | | ?????????????????????????????????????????????????? | | ?????????????????????????????????????????????????? | | ?????????????????????????????????????????????????? | | ?????????????????????????????????????????????????? | | ?????????????????????????????????????????????????? | | ?????????????????????????????????????????????????? | | ?????????????????????????????????????????????????? | | ?????????????????????????????????????????????????? | | ?????????????????????????????????????????????????? | | ?????????????????????????????????????????????????? | | ?????????????????????????????????????????????????? | | ??#+##+#?????????????????????????????????????????? | | ??# ?????????????????????????????????????????? | | ??# ?????????????????????????????????????????? | | ??# ?????????????????????????????????????????? | | ??# ?????????????????????????????????????????? | | ??# #?????????????????????????????????????????? | | ??# #???????????###########???????????????????? | | ??# #???????????# """ #???????????????????? | | ??# #???????????# Y "Y" #???????????????????? | | ??# #???????????# """ !r #???????????????????? | | ??# +???????????# """ @ #???????????????????? | | ??# #???????????# """Y #???????????????????? | | ??# #???????????# r #???????????????????? | | ??# #???????????# #???????????????????? | | ??# #?????????### #???????????????????? | | ??# #######+### ##+##+######??????????????????? | | ??# #??????????????????? | | ??# #### #??????????????????? | | ??# #??# #??????????????????? | | ??# #?##+###+######+#########??????????????????? | | ??# #?# #????????????????????????? | | ??# ### #????????????????????????? | | ??# !# #????????????????????????? | | ??# ! # #????????????????????????? | | ??# !!# #???????????????????????? | | ??# ####################???????????????????????? | | ??# #?###??????????????????????????????????????? | | ??# ###%#######????????????????????????????????? | | ??# # ! #????????????????????????????????? | | ??# # #????????????????????????????????? | | ?## # * #????????????????????????????????? | | ?# # %= #????????????????????????????????? | | ?## #%! #????????????????????????????????? | | ??# "! #????????????????????????????????? | | ??# # #????????????????????????????????? | +----------------------------------------------------+ Best States ------------- Heat Dissipation 25 Energy Generation 15 Energy Capacity 250 Matter Stores 300 Matter Capacity 300 Sight Range 21 Terrain Scan Density 10 Armor Coverage 150 Evasion (%) 55 Recoil Reduction 1 Item Schematics ----------------- None Robot Schematics ------------------ None Fabricated ------------ Nothing Repaired ---------- Nothing Studied --------- None Alien Tech Used ----------------- None Achievements -------------- None Challenges ------------ None Game ------ Seed SeismicPartitionFlamer Manual? 0 Play Time 00:24:45 Cumulative 44.3 hours Start 2025.12.29 @ 00:08:46 End 2025.12.29 @ 00:35:11 Sessions 1 Manual Loads 0 Difficulty Rogue Special Mode None Game No. 61 Rogue 61 Adventurer 0 Explorer 0 Win Type - Total 1 Types 1/0/0/0/0/0/0/0/0/0 Lore% 35 Gallery% 43 Achievement% 34 Wizard Run 0 Options --------- Layout 2 ASCII 0 Keyboard 1 Movement Numpad Keybinds 0 Fullscreen 2 Font 24/Smallcaps Map View 50x44 Zoom Use 0% Tactical HUD 1 Map Filters NONE Filters NONE Steam 1 RUN: 725122be-8412-4ab5-bcb5-d2fa60ffd087